[Event "WSTCC-65 2024"]
[Site "Krakow"]
[Date "2024.07.07"]
[Round "6.14"]
[White "Stebbings, Anthony J"]
[Black "Orton, Stephen L A"]
[Result "1-0"]
[ECO "E84"]
[WhiteElo "2240"]
[BlackElo "2115"]
[Annotator "RC"]
[PlyCount "83"]
[EventDate "2024.07.01"]
[EventType "team-tourn"]
[EventCountry "POL"]
[SourceTitle "playchess.com"]
[Source "ChessBase"]
[SourceQuality "1"]
[TimeControl "40/5400+30:1800+30"]

1. d4 {[%emt 0:00:01]} Nf6 {[%emt 0:00:07]} 2. c4 {[%emt 0:00:02]} g6 {[%emt 0:00:07]} 3. Nc3 {[%emt 0:00:05]} Bg7 {[%emt 0:00:05]} 4. e4 {[%emt 0:00:03]} d6 {[%emt 0:00:04]} 5. f3 {[%emt 0:00:05]} O-O {[%emt 0:00:53]} 6. Be3 {[%emt 0:00:04]} Nc6 {[%emt 0:00:53]} 7. Nge2 {[%emt 0:00:10]} a6 {[%emt 0:01:29]} 8. Qd2 {[%emt 0:00:08]} Rb8 {[%emt 0:00:22]} 9. Nc1 {[%emt 0:00:10]} e5 {[%emt 0:01:19]} 10. d5 {[%emt 0:00:05]} Nd4 {[%emt 0:05:09]} 11. Nb3 {[%emt 0:00:08]} c5 {[%emt 0:06:26]} 12. dxc6 {[%emt 0:00:09]} bxc6 {[%emt 0:02:11]} 13. Nxd4 {[%emt 0:00:10]} exd4 {[%emt 0:00:06]} 14. Bxd4 {[%emt 0:00:05]} d5 {[%emt 0:08:31]} 15. cxd5 {[%emt 0:00:17]} cxd5 {[%emt 0:02:37]} 16. e5 {[%emt 0:02:28]} Nd7 {[%emt 0:04:57]} 17. f4 {[%emt 0:00:07]} Nb6 {[%emt 0:00:56]} 18. Be2 {[%emt 0:04:14]} Nc4 {[%emt 0:05:31]} 19. Bxc4 {[%emt 0:00:11]} dxc4 {[%emt 0:00:05]} 20. O-O {[%emt 0:03:15]} Bf5 {[%emt 0:01:56]} 21. Rfe1 {[%emt 0:04:33]} Qd7 {[%emt 0:01:59]} 22. Ne4 {[%emt 0:06:12]} Rfd8 {[%emt 0:05:08]} 23. Nd6 {[%emt 0:17:55]} Bd3 {[%emt 0:01:16]} 24. Qe3 {[%emt 0:08:00]} Qe6 {[%emt 0:03:11]} 25. Bc3 {[%emt 0:04:36]} h5 {[%emt 0:05:51]} 26. Rad1 {[%emt 0:02:54]} Rd7 {[%emt 0:11:19]} 27. Ne4 {[%emt 0:05:18]} Qg4 {[%emt 0:05:46]} 28. Nc5 {[%emt 0:09:24]} Be4 {[%emt 0:03:25]} 29. Rd2 {[%emt 0:04:19]} Rxd2 {[%emt 0:00:30]} 30. Qxd2 {[%emt 0:00:09]} Bc6 {[%emt 0:01:49]} 31. Nxa6 {[%emt 0:06:05]} Rc8 {[%emt 0:00:54]} 32. Nb4 {[%emt 0:03:06]} Bb7 {[%emt 0:01:34]} 33. h3 {[%emt 0:07:32]} Qe6 {[%emt 0:02:43]} 34. Rd1 {[%emt 0:03:36]} Bf8 {[%emt 0:02:22]} 35. Kh2 {[%emt 0:05:12]} Bxb4 {[%emt 0:03:25]} 36. Bxb4 {[%emt 0:00:03]} Qc6 {[%emt 0:00:10]} 37. Bc3 {[%emt 0:01:29]} Kh7 {[%emt 0:01:23]} 38. Qe2 {[%emt 0:01:14]} Qe6 {[%emt 0:01:33]} 39. Rd6 {[%emt 0:00:54]} Qf5 {[%emt 0:02:25]} 40. Rf6 {[%emt 0:00:40]} Qd7 {[%emt 0:00:19]} 41. e6 {[%emt 0:34:06]} fxe6 {[%emt 0:34:49]} 42. Rxe6 {[%emt 0:00:17]} 1-0

[Event "WSTCC-65 2024"]
[Site "Krakow"]
[Date "2024.07.07"]
[Round "6.14"]
[White "Scrimgour, Alan"]
[Black "Lomer, Edmund"]
[Result "1/2-1/2"]
[ECO "B01"]
[WhiteElo "1979"]
[BlackElo "1943"]
[Annotator "NA RC"]
[PlyCount "93"]
[EventDate "2024.07.01"]
[EventType "team-tourn"]
[EventCountry "POL"]
[SourceTitle "playchess.com"]
[Source "ChessBase"]
[SourceQuality "1"]
[TimeControl "40/5400+30:1800+30"]

1. e4 {[%emt 0:00:03]} d5 {[%emt 0:00:12]} 2. exd5 {[%emt 0:00:07]} Qxd5 {[%emt 0:00:15]} 3. Nc3 {[%emt 0:00:05]} Qa5 {[%emt 0:00:20]} 4. Bc4 {[%emt 0:00:07]} Bf5 {[%emt 0:00:27]} 5. d3 {[%emt 0:01:50]} c6 {[%emt 0:00:27]} 6. Bd2 {[%emt 0:00:55]} Qe5+ {[%emt 0:01:06]} 7. Nge2 {[%emt 0:07:22]} e6 {[%emt 0:01:12]} 8. Bf4 {[%emt 0:03:49]} Qa5 {[%emt 0:00:48]} 9. O-O {[%emt 0:05:15]} Nf6 {[%emt 0:00:33]} 10. Re1 {[%emt 0:07:04]} Be7 {[%emt 0:02:00]} 11. Ng3 {[%emt 0:08:15]} Nbd7 {[%emt 0:02:15]} 12. a3 {[%emt 0:07:18]} Bg6 {[%emt 0:02:55]} 13. b4 {[%emt 0:06:14]} Qd8 {[%emt 0:01:37]} 14. Qf3 {[%emt 0:04:11]} O-O {[%emt 0:00:39]} 15. h4 {[%emt 0:03:21]} Nd5 {[%emt 0:02:16]} 16. Bxd5 {[%emt 0:01:25]} cxd5 {[%emt 0:00:52]} 17. h5 {[%emt 0:00:39]} Bf6 {[%emt 0:01:03]} 18. Bd2 {[%emt 0:04:30]} Rc8 {[%emt 0:04:10]} 19. hxg6 {[%emt 0:00:21]} Rxc3 {[%emt 0:00:38]} 20. gxh7+ {[%emt 0:02:01]} Kh8 {[%emt 0:00:24]} 21. Ra2 {[%emt 0:05:04]} Rc6 {[%emt 0:00:38]} 22. Nh5 {[%emt 0:01:48]} Qc7 {[%emt 0:00:41]} 23. Nxf6 {[%emt 0:01:06]} Nxf6 {[%emt 0:00:21]} 24. Bf4 {[%emt 0:02:21]} Qc8 {[%emt 0:03:26]} 25. Be5 {[%emt 0:04:50]} Nxh7 {[%emt 0:01:56]} 26. Bd4 {[%emt 0:03:42]} f6 {[%emt 0:01:07]} 27. Bxa7 {[%emt 0:04:06]} Ng5 {[%emt 0:00:59]} 28. Qh5+ {[%emt 0:00:22]} Kg8 {[%emt 0:00:32]} 29. Bc5 {[%emt 0:01:43]} Re8 {[%emt 0:01:21]} 30. d4 {[%emt 0:00:40]} b6 {[%emt 0:00:37]} 31. b5 Rc7 {[%emt 0:00:57]} 32. Bxb6 {[%emt 0:00:24]} Rb7 33. Bc5 Rxb5 {[%emt 0:00:56]} 34. a4 {[%emt 0:03:23]} Rb8 {[%emt 0:00:44]} 35. a5 {[%emt 0:02:46]} Ra8 {[%emt 0:00:14]} 36. Bb6 {[%emt 0:03:28]} Ne4 {[%emt 0:01:39]} 37. Re3 {[%emt 0:04:07]} Nd2 {[%emt 0:01:19]} 38. Qe2 {[%emt 0:00:43]} Nc4 {[%emt 0:00:43]} 39. Rb3 {[%emt 0:01:24]} Qa6 {[%emt 0:00:59]} 40. Qd3 {[%emt 0:01:56]} Reb8 {[%emt 0:01:02]} 41. Bc5 {[%emt 0:03:49]} Rb5 {[%emt 0:02:02]} 42. Qg6 {[%emt 0:04:46]} Rxa5 {[%emt 0:02:08]} 43. Rxa5 {[%emt 0:04:11]} Nxa5 {[%emt 0:00:21]} 44. Rh3 {[%emt 0:02:17]} Qb7 {[%emt 0:01:44]} 45. Qh7+ {[%emt 0:00:31]} Kf7 {[%emt 0:00:21]} 46. Qh5+ {[%emt 0:00:02]} Kg8 {[%emt 0:00:13]} 47. Qh7+ {[%emt 0:00:06]} 1/2-1/2

[Event "WSTCC-65 2024"]
[Site "Krakow"]
[Date "2024.07.07"]
[Round "6.14"]
[White "Reem, Meir"]
[Black "Wood, Peter R"]
[Result "0-1"]
[ECO "A05"]
[WhiteElo "1866"]
[BlackElo "1948"]
[Annotator "RC"]
[PlyCount "94"]
[EventDate "2024.07.01"]
[EventType "team-tourn"]
[EventCountry "POL"]
[SourceTitle "playchess.com"]
[Source "ChessBase"]
[SourceQuality "1"]
[TimeControl "40/5400+30:1800+30"]

1. Nf3 {[%emt 0:00:08]} Nf6 {[%emt 0:00:24]} 2. d4 {[%emt 0:00:58]} e6 {[%emt 0:00:25]} 3. Bf4 {[%emt 0:00:10]} c5 {[%emt 0:00:23]} 4. e3 {[%emt 0:00:14]} b6 {[%emt 0:00:29]} 5. c3 {[%emt 0:02:10]} Bb7 {[%emt 0:00:27]} 6. Nbd2 {[%emt 0:00:23]} cxd4 {[%emt 0:06:00]} 7. exd4 {[%emt 0:00:12]} d6 {[%emt 0:00:17]} 8. Qc2 {[%emt 0:03:57]} Be7 {[%emt 0:00:46]} 9. Bd3 {[%emt 0:00:22]} Nbd7 {[%emt 0:01:52]} 10. O-O {[%emt 0:01:54]} Rc8 {[%emt 0:02:32]} 11. Rfe1 {[%emt 0:03:04]} Nd5 {[%emt 0:02:30]} 12. Bg3 {[%emt 0:03:10]} Nb4 {[%emt 0:01:19]} 13. Qb1 {[%emt 0:00:02]} Nxd3 {[%emt 0:00:10]} 14. Qxd3 {[%emt 0:00:08]} Nf6 {[%emt 0:00:19]} 15. h3 {[%emt 0:05:43]} O-O {[%emt 0:00:57]} 16. Qe2 {[%emt 0:04:41]} Re8 {[%emt 0:04:18]} 17. Ng5 {[%emt 0:03:21]} Bf8 {[%emt 0:07:25]} 18. Nge4 {[%emt 0:08:24]} Be7 {[%emt 0:16:54]} 19. Nxf6+ {[%emt 0:00:22]} Bxf6 {[%emt 0:00:07]} 20. Ne4 {[%emt 0:01:31]} Bxe4 {[%emt 0:05:24]} 21. Qxe4 {[%emt 0:01:02]} d5 {[%emt 0:02:08]} 22. Qg4 {[%emt 0:02:53]} b5 {[%emt 0:02:24]} 23. Be5 {[%emt 0:03:35]} Rc4 {[%emt 0:01:33]} 24. Qg3 {[%emt 0:05:28]} b4 {[%emt 0:01:11]} 25. Re3 {[%emt 0:08:23]} bxc3 {[%emt 0:01:34]} 26. bxc3 {[%emt 0:04:32]} Bxe5 {[%emt 0:00:26]} 27. Qxe5 {[%emt 0:01:18]} Qb8 {[%emt 0:08:35]} 28. Qh5 {[%emt 0:05:01]} Rf8 {[%emt 0:03:10]} 29. Qe2 {[%emt 0:01:11]} Qc7 {[%emt 0:01:18]} 30. Qd3 {[%emt 0:01:11]} a5 {[%emt 0:02:08]} 31. Rb1 {[%emt 0:01:06]} Rb8 {[%emt 0:00:21]} 32. Rxb8+ {[%emt 0:01:17]} Qxb8 {[%emt 0:00:10]} 33. Qc2 {[%emt 0:00:52]} a4 {[%emt 0:02:50]} 34. Kf1 {[%emt 0:00:53]} Qc7 {[%emt 0:01:13]} 35. Ke2 {[%emt 0:00:26]} Rxd4 {[%emt 0:01:16]} 36. Qb2 {[%emt 0:01:24]} Rc4 {[%emt 0:00:19]} 37. Qb5 {[%emt 0:05:32]} g6 {[%emt 0:09:07]} 38. Rf3 {[%emt 0:00:36]} Kg7 {[%emt 0:01:11]} 39. Kd2 {[%emt 0:00:43]} d4 {[%emt 0:03:34]} 40. Qg5 {[%emt 0:00:19]} Rxc3 {[%emt 0:05:18]} 41. Qf6+ {[%emt 0:30:18]} Kg8 {[%emt 0:30:09]} 42. Qxd4 {[%emt 0:03:35]} Rc2+ {[%emt 0:02:30]} 43. Kd1 Rc1+ 44. Ke2 {[%emt 0:05:10]} Qc2+ {[%emt 0:00:00]} 45. Qd2 {[%emt 0:00:00]} Qc4+ {[%emt 0:00:00]} 46. Qd3 {[%emt 0:00:00]} Rc2+ {[%emt 0:00:00]} 47. Ke1 {[%emt 0:00:00]} Qb4+ 0-1

[Event "WSTCC-65 2024"]
[Site "Krakow"]
[Date "2024.07.07"]
[Round "6.15"]
[White "Hewson, Brian W R"]
[Black "Povah, Nigel E"]
[Result "1/2-1/2"]
[ECO "A05"]
[WhiteElo "2042"]
[BlackElo "2179"]
[Annotator "RC"]
[PlyCount "50"]
[EventDate "2024.07.01"]
[EventType "team-tourn"]
[EventCountry "POL"]
[SourceTitle "playchess.com"]
[Source "ChessBase"]
[SourceQuality "1"]
[TimeControl "40/5400+30:1800+30"]

1. Nf3 {[%emt 0:00:06]} Nf6 {[%emt 0:00:18]} 2. g3 {[%emt 0:00:36]} b5 {[%emt 0:03:20]} 3. a4 {[%emt 0:03:45]} b4 {[%emt 0:00:17]} 4. c3 {[%emt 0:00:25]} c5 {[%emt 0:02:04]} 5. d4 {[%emt 0:00:28]} e6 {[%emt 0:00:58]} 6. Bg2 {[%emt 0:00:19]} Bb7 {[%emt 0:00:27]} 7. O-O {[%emt 0:00:20]} a5 {[%emt 0:06:58]} 8. Nbd2 {[%emt 0:06:58]} Na6 {[%emt 0:23:08]} 9. c4 {[%emt 0:07:47]} cxd4 {[%emt 0:08:42]} 10. Nxd4 {[%emt 0:05:04]} Bxg2 {[%emt 0:03:37]} 11. Kxg2 {[%emt 0:00:05]} Qb6 {[%emt 0:07:34]} 12. N2f3 {[%emt 0:07:19]} Rc8 {[%emt 0:04:28]} 13. b3 {[%emt 0:03:31]} d5 {[%emt 0:00:49]} 14. cxd5 {[%emt 0:02:13]} Nxd5 {[%emt 0:00:23]} 15. Qd3 {[%emt 0:09:07]} Bc5 {[%emt 0:05:37]} 16. Bb2 {[%emt 0:08:36]} O-O {[%emt 0:02:41]} 17. Ng5 {[%emt 0:04:03]} g6 {[%emt 0:01:57]} 18. Ne4 {[%emt 0:00:47]} Be7 {[%emt 0:09:31]} 19. Qb5 {[%emt 0:07:52]} f5 {[%emt 0:08:34]} 20. Nd2 {[%emt 0:03:45]} Nac7 {[%emt 0:01:55]} 21. Qxb6 {[%emt 0:01:05]} Nxb6 {[%emt 0:00:06]} 22. Nc6 {[%emt 0:00:41]} Ncd5 {[%emt 0:00:52]} 23. Rac1 {[%emt 0:03:45]} Bg5 {[%emt 0:00:36]} 24. e3 {[%emt 0:06:45]} Ra8 {[%emt 0:04:03]} 25. Bd4 {[%emt 0:03:26]} Bf6 {[%emt 0:01:01]} 1/2-1/2

[Event "WSTCC-65 2024"]
[Site "Krakow"]
[Date "2024.07.07"]
[Round "6.15"]
[White "Reuben, Stewart"]
[Black "Gorjaltsan, Eduard"]
[Result "0-1"]
[ECO "A36"]
[WhiteElo "1995"]
[BlackElo "1884"]
[Annotator "NA RC"]
[PlyCount "104"]
[EventDate "2024.07.01"]
[EventType "team-tourn"]
[EventCountry "POL"]
[SourceTitle "playchess.com"]
[Source "ChessBase"]
[SourceQuality "1"]
[TimeControl "40/5400+30:1800+30"]

1. c4 {[%emt 0:00:21]} c5 {[%emt 0:00:14]} 2. Nc3 {[%emt 0:00:09]} g6 {[%emt 0:00:20]} 3. g3 {[%emt 0:00:14]} Bg7 {[%emt 0:00:16]} 4. Bg2 {[%emt 0:00:12]} Nc6 {[%emt 0:00:31]} 5. d3 {[%emt 0:00:49]} Nf6 {[%emt 0:00:29]} 6. Nh3 {[%emt 0:00:25]} d6 {[%emt 0:00:45]} 7. Nf4 {[%emt 0:00:22]} O-O {[%emt 0:00:44]} 8. h4 {[%emt 0:00:16]} h5 {[%emt 0:00:29]} 9. O-O {[%emt 0:00:53]} Rb8 {[%emt 0:03:27]} 10. Rb1 {[%emt 0:02:02]} a6 {[%emt 0:02:54]} 11. a3 {[%emt 0:01:01]} Bd7 {[%emt 0:01:01]} 12. b4 {[%emt 0:00:52]} cxb4 {[%emt 0:02:22]} 13. axb4 {[%emt 0:00:17]} b5 {[%emt 0:00:38]} 14. cxb5 {[%emt 0:01:04]} axb5 {[%emt 0:00:17]} 15. Qb3 {[%emt 0:08:09]} e6 {[%emt 0:01:01]} 16. Bb2 {[%emt 0:05:51]} Qe7 {[%emt 0:02:33]} 17. Ne4 {[%emt 0:03:02]} Nxe4 {[%emt 0:02:03]} 18. Bxg7 {[%emt 0:01:06]} Kxg7 {[%emt 0:02:39]} 19. Bxe4 {[%emt 0:02:59]} d5 {[%emt 0:04:05]} 20. Qb2+ {[%emt 0:01:45]} Qf6 {[%emt 0:00:40]} 21. Bg2 {[%emt 0:04:50]} Ra8 {[%emt 0:01:36]} 22. Rfc1 {[%emt 0:03:04]} Ra4 {[%emt 0:00:55]} 23. Qd2 {[%emt 0:05:02]} Rfa8 {[%emt 0:00:25]} 24. e3 {[%emt 0:05:51]} Qe7 {[%emt 0:01:02]} 25. Rxc6 {[%emt 0:00:53]} Bxc6 {[%emt 0:00:32]} 26. Qc3+ {[%emt 0:00:13]} e5 {[%emt 0:01:59]} 27. Nxh5+ {[%emt 0:06:57]} gxh5 {[%emt 0:00:27]} 28. Qxc6 {[%emt 0:00:37]} Rxb4 {[%emt 0:01:27]} 29. Rf1 {[%emt 0:08:29]} Rd8 {[%emt 0:02:16]} 30. Bxd5 {[%emt 0:01:20]} Qd6 {[%emt 0:01:42]} 31. Qxd6 {[%emt 0:04:20]} Rxd6 {[%emt 0:00:14]} 32. Be4 {[%emt 0:00:44]} Rb2 {[%emt 0:01:44]} 33. Rc1 {[%emt 0:03:47]} Kf6 {[%emt 0:04:51]} 34. Rc5 {[%emt 0:00:54]} Ke6 {[%emt 0:00:50]} 35. Kg2 {[%emt 0:17:50]} f5 {[%emt 0:02:13]} 36. Bc6 {[%emt 0:01:49]} Rxd3 {[%emt 0:06:23]} 37. Rxb5 {[%emt 0:01:53]} Rc2 {[%emt 0:01:24]} 38. Rb6 {[%emt 0:00:33]} Rd6 {[%emt 0:01:09]} 39. Ba4 {[%emt 0:00:38]} Rxf2+ {[%emt 0:00:58]} 40. Kxf2 {[%emt 0:00:11]} Rxb6 {[%emt 0:00:30]} 41. Be8 {[%emt 0:31:08]} Rb2+ {[%emt 0:31:00]} 42. Kf1 {[%emt 0:01:45]} Kd5 {[%emt 0:00:27]} 43. Bxh5 {[%emt 0:00:45]} Ke4 {[%emt 0:00:09]} 44. Bg6 {[%emt 0:00:00]} Kf3 {[%emt 0:00:00]} 45. Ke1 {[%emt 0:00:00]} Kxe3 {[%emt 0:00:00]} 46. Kd1 {[%emt 0:00:00]} f4 {[%emt 0:00:00]} 47. gxf4 {[%emt 0:00:00]} exf4 {[%emt 0:00:00]} 48. Bf7 {[%emt 0:00:00]} Rh2 {[%emt 0:00:00]} 49. h5 {[%emt 0:00:00]} f3 {[%emt 0:00:00]} 50. Bc4 {[%emt 0:00:00]} Rxh5 {[%emt 0:00:00]} 51. Ke1 {[%emt 0:00:00]} Rh1+ {[%emt 0:00:00]} 52. Bf1 {[%emt 0:00:00]} f2+ {[%emt 0:00:00]} 0-1

[Event "WSTCC-65 2024"]
[Site "Krakow"]
[Date "2024.07.07"]
[Round "6.15"]
[White "Hansch, Klaus-Michael"]
[Black "Marks, Ian A"]
[Result "1/2-1/2"]
[ECO "A40"]
[WhiteElo "1898"]
[BlackElo "1932"]
[Annotator "NA RC"]
[PlyCount "59"]
[EventDate "2024.07.01"]
[EventType "team-tourn"]
[EventCountry "POL"]
[SourceTitle "playchess.com"]
[Source "ChessBase"]
[SourceQuality "1"]
[TimeControl "40/5400+30:1800+30"]

1. d4 {[%emt 0:00:55]} g6 {[%emt 0:00:17]} 2. Bf4 {[%emt 0:01:27]} Bg7 {[%emt 0:00:08]} 3. c3 {[%emt 0:00:45]} d6 {[%emt 0:00:08]} 4. Nf3 {[%emt 0:00:35]} Nd7 {[%emt 0:00:25]} 5. e4 {[%emt 0:04:04]} e5 {[%emt 0:04:44]} 6. dxe5 {[%emt 0:00:38]} dxe5 {[%emt 0:00:13]} 7. Bg3 {[%emt 0:00:58]} Qe7 {[%emt 0:00:45]} 8. Nbd2 {[%emt 0:02:06]} Ngf6 {[%emt 0:01:51]} 9. Bc4 {[%emt 0:02:51]} O-O {[%emt 0:00:51]} 10. O-O {[%emt 0:00:31]} Nh5 {[%emt 0:03:27]} 11. Bh4 {[%emt 0:03:24]} Bf6 {[%emt 0:00:39]} 12. Bg3 {[%emt 0:00:33]} Nxg3 {[%emt 0:00:48]} 13. hxg3 {[%emt 0:00:09]} Nb6 {[%emt 0:03:54]} 14. Bb3 {[%emt 0:02:00]} Be6 {[%emt 0:01:25]} 15. Qe2 {[%emt 0:03:45]} Rad8 {[%emt 0:03:49]} 16. Rfd1 {[%emt 0:03:42]} c6 {[%emt 0:04:25]} 17. Nc4 {[%emt 0:05:48]} Nxc4 {[%emt 0:00:56]} 18. Bxc4 {[%emt 0:00:08]} Rd7 {[%emt 0:05:14]} 19. Bxe6 {[%emt 0:03:18]} Rxd1+ {[%emt 0:02:28]} 20. Rxd1 {[%emt 0:03:01]} Qxe6 {[%emt 0:00:37]} 21. b3 {[%emt 0:00:32]} Rd8 {[%emt 0:03:12]} 22. Rxd8+ {[%emt 0:01:24]} Bxd8 {[%emt 0:00:03]} 23. Qd2 {[%emt 0:03:46]} Bb6 {[%emt 0:01:25]} 24. Qh6 {[%emt 0:05:15]} f6 {[%emt 0:04:25]} 25. Qd2 {[%emt 0:02:46]} Kg7 {[%emt 0:11:39]} 26. Nh2 {[%emt 0:04:39]} h5 {[%emt 0:07:42]} 27. Kf1 {[%emt 0:01:36]} Bc5 {[%emt 0:02:19]} 28. Nf3 {[%emt 0:03:22]} Qd6 {[%emt 0:01:34]} 29. Qxd6 {[%emt 0:00:34]} Bxd6 {[%emt 0:00:09]} 30. Nd2 {[%emt 0:00:20]} 1/2-1/2

[Event "WSTCC-65 2024"]
[Site "Krakow"]
[Date "2024.07.07"]
[Round "6.16"]
[White "Tsifanskaya, Ludmila A"]
[Black "Scowen, Roger S"]
[Result "1-0"]
[ECO "C00"]
[WhiteElo "1970"]
[BlackElo "1888"]
[Annotator "NA RC"]
[PlyCount "47"]
[EventDate "2024.07.01"]
[EventType "team-tourn"]
[EventCountry "POL"]
[SourceTitle "playchess.com"]
[Source "ChessBase"]
[SourceQuality "1"]
[TimeControl "40/5400+30:1800+30"]

1. e4 {[%emt 0:00:04]} e6 {[%emt 0:00:15]} 2. d3 {[%emt 0:00:05]} d5 {[%emt 0:00:17]} 3. Nd2 {[%emt 0:00:05]} c5 {[%emt 0:00:39]} 4. Ngf3 {[%emt 0:00:08]} Nc6 {[%emt 0:01:39]} 5. g3 {[%emt 0:00:11]} Nf6 {[%emt 0:09:00]} 6. Bg2 {[%emt 0:00:17]} dxe4 {[%emt 0:01:09]} 7. dxe4 {[%emt 0:00:12]} Be7 {[%emt 0:07:34]} 8. O-O {[%emt 0:00:47]} O-O {[%emt 0:01:42]} 9. Re1 {[%emt 0:01:50]} Qc7 {[%emt 0:04:41]} 10. c3 {[%emt 0:00:44]} Rd8 {[%emt 0:08:04]} 11. Qc2 {[%emt 0:03:29]} b6 {[%emt 0:07:09]} 12. e5 {[%emt 0:05:55]} Nd5 {[%emt 0:12:26]} 13. Nf1 {[%emt 0:01:31]} f5 {[%emt 0:06:17]} 14. exf6 {[%emt 0:01:08]} gxf6 {[%emt 0:07:13]} 15. Bh6 {[%emt 0:08:34]} Rb8 {[%emt 0:03:31]} 16. Rad1 {[%emt 0:02:39]} Bf8 {[%emt 0:05:44]} 17. Bxf8 {[%emt 0:03:32]} Rxf8 {[%emt 0:00:32]} 18. Ne3 {[%emt 0:06:52]} Nce7 {[%emt 0:07:24]} 19. Ng4 {[%emt 0:03:31]} e5 {[%emt 0:03:44]} 20. h3 {[%emt 0:03:32]} Be6 21. Nh4 Rbd8 {[%emt 0:04:46]} 22. Be4 {[%emt 0:05:12]} f5 {[%emt 0:05:34]} 23. Nh6+ {[%emt 0:00:04]} Kg7 {[%emt 0:00:20]} 24. N6xf5+ {[%emt 0:00:23]} 1-0

[Event "WSTCC-65 2024"]
[Site "Krakow"]
[Date "2024.07.07"]
[Round "6.16"]
[White "McAndrew, Robert"]
[Black "Mueggenburg, Rolf"]
[Result "1/2-1/2"]
[ECO "A30"]
[WhiteElo "1926"]
[BlackElo "1777"]
[Annotator "RC"]
[PlyCount "68"]
[EventDate "2024.07.01"]
[EventType "team-tourn"]
[EventCountry "POL"]
[SourceTitle "playchess.com"]
[Source "ChessBase"]
[SourceQuality "1"]
[TimeControl "40/5400+30:1800+30"]

1. c4 {[%emt 0:00:05]} c5 {[%emt 0:00:18]} 2. g3 {[%emt 0:00:23]} Nc6 {[%emt 0:00:20]} 3. Bg2 {[%emt 0:00:14]} Nf6 {[%emt 0:00:32]} 4. Nc3 {[%emt 0:01:14]} e6 {[%emt 0:01:42]} 5. Nf3 {[%emt 0:00:57]} Be7 {[%emt 0:00:42]} 6. e4 {[%emt 0:12:32]} d6 {[%emt 0:00:17]} 7. d4 {[%emt 0:00:17]} cxd4 {[%emt 0:00:28]} 8. Nxd4 {[%emt 0:00:06]} Nxd4 {[%emt 0:01:00]} 9. Qxd4 {[%emt 0:00:06]} e5 {[%emt 0:00:26]} 10. Qd2 {[%emt 0:01:39]} Be6 {[%emt 0:02:25]} 11. b3 {[%emt 0:00:15]} O-O {[%emt 0:00:38]} 12. O-O {[%emt 0:00:06]} Qc8 {[%emt 0:03:33]} 13. Qe2 {[%emt 0:06:17]} h6 {[%emt 0:03:38]} 14. Be3 {[%emt 0:06:40]} Ng4 {[%emt 0:02:50]} 15. Bd2 {[%emt 0:02:50]} Nf6 {[%emt 0:00:21]} 16. Rac1 {[%emt 0:07:20]} Kh7 {[%emt 0:08:40]} 17. f3 {[%emt 0:10:07]} Ng8 {[%emt 0:04:51]} 18. Be3 {[%emt 0:09:29]} Rd8 {[%emt 0:01:58]} 19. Rfd1 {[%emt 0:02:14]} Rd7 {[%emt 0:04:12]} 20. Nd5 {[%emt 0:06:44]} Bd8 {[%emt 0:02:13]} 21. f4 {[%emt 0:01:33]} f6 {[%emt 0:01:49]} 22. c5 {[%emt 0:02:04]} Qb8 {[%emt 0:11:03]} 23. f5 {[%emt 0:06:56]} Bf7 {[%emt 0:07:58]} 24. Qb5 {[%emt 0:01:18]} Be8 {[%emt 0:01:49]} 25. Qe2 {[%emt 0:02:13]} dxc5 {[%emt 0:02:35]} 26. Bxc5 {[%emt 0:01:26]} b6 {[%emt 0:03:09]} 27. Be3 {[%emt 0:01:48]} Qb7 {[%emt 0:00:38]} 28. Bf1 {[%emt 0:02:39]} Ne7 {[%emt 0:02:12]} 29. Qa6 {[%emt 0:00:26]} Rb8 {[%emt 0:07:42]} 30. Bc4 {[%emt 0:04:01]} Nxd5 {[%emt 0:02:45]} 31. Qxb7 {[%emt 0:00:33]} Rbxb7 {[%emt 0:01:48]} 32. Bxd5 {[%emt 0:00:17]} Rbc7 {[%emt 0:00:39]} 33. Kf2 {[%emt 0:02:53]} Rxc1 {[%emt 0:02:01]} 34. Rxc1 {[%emt 0:02:18]} Rc7 {[%emt 0:01:12]} 1/2-1/2

[Event "WSTCC-65 2024"]
[Site "Krakow"]
[Date "2024.07.07"]
[Round "6.17"]
[White "Sanetra, Piotr"]
[Black "Meulders, Richard"]
[Result "1/2-1/2"]
[ECO "B22"]
[WhiteElo "2024"]
[BlackElo "2154"]
[Annotator "RC"]
[PlyCount "56"]
[EventDate "2024.07.01"]
[EventType "team-tourn"]
[EventCountry "POL"]
[SourceTitle "playchess.com"]
[Source "ChessBase"]
[SourceQuality "1"]
[TimeControl "40/5400+30:1800+30"]

1. e4 {[%emt 0:00:05]} c5 {[%emt 0:00:08]} 2. c3 {[%emt 0:00:14]} d5 {[%emt 0:00:16]} 3. exd5 {[%emt 0:00:07]} Qxd5 {[%emt 0:00:07]} 4. d4 {[%emt 0:00:07]} Nc6 {[%emt 0:00:21]} 5. Nf3 {[%emt 0:00:12]} Bg4 {[%emt 0:00:37]} 6. Be2 {[%emt 0:00:23]} cxd4 {[%emt 0:00:25]} 7. cxd4 {[%emt 0:00:09]} e6 {[%emt 0:00:13]} 8. h3 {[%emt 0:06:58]} Bh5 {[%emt 0:00:27]} 9. Nc3 {[%emt 0:02:17]} Bb4 {[%emt 0:00:31]} 10. O-O {[%emt 0:00:48]} Bxc3 {[%emt 0:07:17]} 11. bxc3 {[%emt 0:00:45]} Nge7 {[%emt 0:02:04]} 12. Ba3 {[%emt 0:05:18]} Qa5 {[%emt 0:04:52]} 13. Qb3 {[%emt 0:02:00]} Qb6 {[%emt 0:02:52]} 14. Qxb6 {[%emt 0:31:04]} axb6 {[%emt 0:00:06]} 15. Bxe7 {[%emt 0:00:10]} Nxe7 {[%emt 0:06:16]} 16. Bb5+ {[%emt 0:02:31]} Kd8 {[%emt 0:01:49]} 17. g4 {[%emt 0:03:06]} Bg6 {[%emt 0:00:18]} 18. a4 {[%emt 0:08:46]} h5 {[%emt 0:07:39]} 19. Ne5 {[%emt 0:01:11]} hxg4 {[%emt 0:01:24]} 20. hxg4 {[%emt 0:00:09]} Kc7 {[%emt 0:05:06]} 21. Kg2 {[%emt 0:03:32]} f6 {[%emt 0:02:43]} 22. Nxg6 {[%emt 0:03:55]} Nxg6 {[%emt 0:00:05]} 23. Kg3 {[%emt 0:00:14]} e5 {[%emt 0:04:47]} 24. dxe5 {[%emt 0:04:54]} Nxe5 {[%emt 0:01:01]} 25. f4 {[%emt 0:00:36]} Nc6 {[%emt 0:00:15]} 26. Rh1 {[%emt 0:03:25]} Rae8 {[%emt 0:05:27]} 27. Kf3 {[%emt 0:00:36]} g5 {[%emt 0:00:43]} 28. Rad1 {[%emt 0:04:28]} Rh4 1/2-1/2